[Event "HSK GM Invitational 2022"]
[Site "Hamburg"]
[Date "2022.05.27"]
[Round "9.2"]
[White "Koellner, Ruben Gideon"]
[Black "Svane, Frederik"]
[Result "0-1"]
[ECO "A46"]
[WhiteElo "2440"]
[BlackElo "2501"]
[Annotator "TA"]
[PlyCount "102"]
[EventDate "2022.05.20"]
[EventType "tourn"]
[EventCountry "GER"]
[SourceTitle "playchess.com"]
[Source "ChessBase"]
[SourceQuality "1"]
[TimeControl "40/5400+30:1800+30"]

{[%evp 9,102,8,0,0,35,31,35,16,22,0,0,0,-3,0,-8,-16,0,-18,-20,-17,4,-39,0,0,0,-89,-33,-29,-29,-96,-88,-94,-97,-92,-89,-90,-90,-116,-102,-129,-143,-143,-143,-139,-116,-191,-140,-148,-137,-146,-129,-182,-180,-181,-181,-181,-179,-172,-184,-170,-181,-198,-198,-185,-181,-184,-176,-177,-168,-486,-475,-456,-429,-1576,-9800,-8278,-8118,-6579,-1491,-2647,-2038,-1196,-906,-2553,-2323,-1900,-850,-12837,-12837,-12839,-12839,-12844,-12844,-12847,-12847]} 1. d4 {[%emt 0:00:03]} d6 {[%emt 0:00:04]} 2. Nf3 {[%emt 0:00:25]} Nf6 {[%emt 0:00:05]} 3. Nbd2 {[%emt 0:00:15]} Bf5 {[%emt 0:00:06]} 4. h3 {[%emt 0:02:51]} Nc6 {[%emt 0:07:20] [#]} 5. g4 $146 {[%emt 0:03:40]} ({Predecessor:} 5. c4 Qd7 6. a3 e5 7. dxe5 dxe5 8. e3 Be7 9. Be2 Bd3 10. O-O e4 11. Ne1 {1-0 (44) Geisler,P-Heeger,K (1332) Germany 2002}) 5... Bg6 {[%emt 0:03:11]} 6. c3 {[%emt 0:00:09] A46: 1 d4 Nf6 2 Nf3 e6: Torre, London and Colle Systems.} e5 {[%emt 0:01:14]} (6... h6 $5 {[%cal Re7e6]}) 7. dxe5 {[%emt 0:15:03]} dxe5 {[%emt 0:18:22]} 8. Nh4 {[%emt 0:09:15] White is slightly better.} Qd7 {[%emt 0:00:13]} 9. Bg2 {[%emt 0:04:39]} O-O-O {[%emt 0:00:17][%cal Og6e4]} 10. Nxg6 {[%emt 0:04:40]} hxg6 {[%emt 0:00:30]} 11. Qa4 {[%emt 0:00:30]} Nd5 {[%emt 0:18:17]} 12. Nc4 {[%emt 0:08:18]} Qe6 {[%emt 0:00:24]} 13. Be3 {[%emt 0:08:26]} a6 {[%emt 0:12:29]} 14. O-O-O {[%emt 0:03:50]} Be7 {[%emt 0:00:04]} 15. Rd2 {[%emt 0:15:05]} Rd7 {[%emt 0:01:15]} 16. Rhd1 {[%emt 0:02:02]} Rhd8 {[%emt 0:00:07]} 17. Qc2 {[%emt 0:09:15]} (17. Rxd5 $11 {keeps the balance.} Rxd5 18. Bxd5 Rxd5 19. Rxd5 Qxd5 20. f3) 17... b5 {[%emt 0:11:36]} (17... Nxe3 $17 18. Nxe3 Rxd2 19. Rxd2 Qxa2) 18. Rxd5 $15 {[%emt 0:04:29]} Rxd5 {[%emt 0:00:33]} 19. Rxd5 {[%emt 0:00:15]} (19. Bxd5 $11 {remains equal.} Rxd5 20. Nd2) 19... Rxd5 $17 {[%emt 0:00:30]} 20. Bxd5 {[%emt 0:00:30]} Qxd5 {[%emt 0:00:00]} 21. Nd2 {[%emt 0:01:37]} Qxa2 {[%emt 0:00:44] Black is more active.} 22. Qe4 {[%emt 0:01:01]} Qe6 {[%emt 0:00:32]} 23. g5 {[%emt 0:00:34]} Kd7 {[%emt 0:01:39]} 24. b4 {[%emt 0:01:05]} Bd6 {[%emt 0:01:27]} 25. h4 {[%emt 0:02:28]} a5 {[%emt 0:02:38][%cal Ra5b4]} 26. Qd3 {[%emt 0:00:40]} axb4 {[%emt 0:03:27]} 27. Qxb5 {[%emt 0:00:05]} (27. cxb4 $17 Qa2 28. Bc5) 27... Qa2 {[%emt 0:00:15]} (27... bxc3 $19 28. Nb3 Bb4) 28. cxb4 {[%emt 0:01:42] [#]} Qa3+ $1 {[%emt 0:05:33]} ({Stronger than} 28... Bxb4 29. Ne4 $17) 29. Kc2 {[%emt 0:00:12]} Qxb4 {[%emt 0:00:31]} ({Reject} 29... Bxb4 $6 30. Qd5+ Bd6 31. Qxf7+ Ne7 32. Qc4 $11) 30. Qd5 {[%emt 0:00:15]} (30. Qc4 $17) 30... Qa4+ $19 {[%emt 0:00:19]} 31. Kb1 {[%emt 0:00:21] [#]} Qc2+ $3 {[%emt 0:02:06][%mdl 512]} 32. Kxc2 {[%emt 0:00:56]} Nb4+ {[%emt 0:00:03]} 33. Kb3 {[%emt 0:00:11]} Nxd5 {[%emt 0:00:05][%mdl 4096] Endgame KBN-KBN} 34. Kc4 {[%emt 0:00:58]} Ke6 {[%emt 0:02:25]} 35. Ba7 {[%emt 0:01:06] [#]} Nf4 $1 {[%emt 0:06:48]} 36. e4 {[%emt 0:00:06]} Ng2 {[%emt 0:00:57]} 37. Nf3 {[%emt 0:00:10]} f5 {[%emt 0:00:35]} 38. gxf6 {[%emt 0:01:34]} gxf6 {[%emt 0:00:02]} 39. Be3 $2 {[%emt 0:00:09]} (39. Bc5 {is a better chance.}) 39... Nxe3+ {[%emt 0:01:07] Black is clearly winning.} 40. fxe3 {[%emt 0:00:01] KB-KN} Be7 {[%emt 0:00:44]} 41. h5 {[%emt 0:04:31]} (41. Kc3 $142 f5 42. Kd3) 41... gxh5 {[%emt 0:00:00]} 42. Nh4 {[%emt 0:00:05]} c6 {[%emt 0:00:33] ...Bd6 is the strong threat.} 43. Nf5 {[%emt 0:00:08]} Bf8 {[%emt 0:00:04]} 44. Nh4 {[%emt 0:00:23]} Kf7 {[%emt 0:02:06] And now ...Bh6 would win.} 45. Kd3 {[%emt 0:00:26]} Bb4 {[%emt 0:00:50]} 46. Kc4 {[%emt 0:00:16]} Be1 {[%emt 0:01:08]} 47. Nf3 {[%emt 0:00:10]} Bg3 {[%emt 0:00:04] Hoping for ...h4.} 48. Kc5 {[%emt 0:00:04]} h4 {[%emt 0:00:03]} 49. Ng1 {[%emt 0:00:18]} Bf2 {[%emt 0:00:03][%csl LRe3,LRg1]} 50. Nh3 {[%emt 0:00:07]} Bxe3+ {[%emt 0:00:04]} 51. Kxc6 {[%emt 0:00:05]} Kg6 {[%emt 0:00:33] Weighted Error Value: White=0.57/Black=0.06 (flawless)} 0-1

[Event "HSK GM Invitational 2022"]
[Site "Hamburg"]
[Date "2022.05.27"]
[Round "9.3"]
[White "Carlstedt, Jonathan"]
[Black "Colpe, Malte"]
[Result "1/2-1/2"]
[ECO "D41"]
[WhiteElo "2444"]
[BlackElo "2348"]
[Annotator "TA"]
[PlyCount "88"]
[EventDate "2022.05.20"]
[EventType "tourn"]
[EventCountry "GER"]
[SourceTitle "playchess.com"]
[Source "ChessBase"]
[SourceQuality "1"]
[TimeControl "40/5400+30:1800+30"]

{[%evp 26,88,39,0,0,3,0,0,0,0,0,-12,-13,0,0,0,0,0,0,0,0,0,0,-44,17,-17,0,-111,0,0,0,0,0,-86,-61,-69,-38,-48,-14,-16,-2,-131,-138,-144,-124,-129,-141,-116,-121,-113,0,0,0,0,0,0,0,0,0,0,0,0,0,0,0]} 1. d4 {[%emt 0:00:23] Nielsen,Peter Heine} Nf6 {[%emt 0:00:09]} 2. Nf3 {[%emt 0:00:04]} d5 {[%emt 0:00:36]} 3. c4 {[%emt 0:00:06]} e6 {[%emt 0:00:18]} 4. Nc3 {[%emt 0:00:06]} c5 {[%emt 0:01:29]} 5. cxd5 {[%emt 0:00:31]} Nxd5 {[%emt 0:00:22]} 6. e4 {[%emt 0:00:05]} Nxc3 {[%emt 0:00:08]} 7. bxc3 {[%emt 0:00:04]} cxd4 {[%emt 0:00:09]} 8. cxd4 {[%emt 0:00:30]} Bb4+ {[%emt 0:00:30]} 9. Bd2 {[%emt 0:00:00]} Bxd2+ {[%emt 0:00:00]} 10. Qxd2 {[%emt 0:00:07]} O-O {[%emt 0:00:19]} 11. Bc4 {[%emt 0:00:30]} Nd7 {[%emt 0:00:30]} 12. O-O {[%emt 0:00:30]} b6 {[%emt 0:00:30]} 13. Rfe1 {[%emt 0:00:30]} Bb7 {[%emt 0:00:30]} 14. Rad1 {[%emt 0:00:30]} Rc8 {[%emt 0:00:30] D41: Queen's Gambit Declined: Semi-Tarrasch with 5 cxd5.} 15. Bb3 {[%emt 0:00:30]} Re8 {[%emt 0:00:30]} 16. Re3 {[%emt 0:00:30]} Nf6 {[%emt 0:00:30]} 17. d5 {[%emt 0:00:30]} exd5 {[%emt 0:00:30]} 18. e5 {[%emt 0:00:30] [#]} Nd7 $146 {[%emt 0:35:28]} ({Predecessor:} 18... Ne4 19. Qe1 Qc7 20. Nd4 a6 21. h4 Rcd8 22. f3 Nc5 23. h5 Ne6 24. Nf5 d4 {1-0 (34) Carlsen,M (2863)-Giri,A (2764) chess24.com INT 2020 CBM 197 [Nielsen,Peter Heine]}) 19. Qe2 {[%emt 0:00:00]} Nc5 {[%emt 0:00:30]} 20. Nd4 {[%emt 0:00:12]} g6 {[%emt 0:02:28] Against Qh5} 21. Qg4 {[%emt 0:19:10]} Qd7 {[%emt 0:05:27]} 22. Qh4 {[%emt 0:08:27]} Qe7 {[%emt 0:02:10]} 23. Qh6 {[%emt 0:00:15][%cal Od4f5]} Qf8 {[%emt 0:01:59]} 24. Qh3 {[%emt 0:00:13]} Ne4 {[%emt 0:12:07]} (24... a5 $15) 25. f3 {[%emt 0:12:23]} (25. Rxe4 $5 dxe4 26. e6 $11) 25... Nc3 {[%emt 0:10:38]} 26. Rdd3 {[%emt 0:00:34] [#]} (26. Rde1 $1 $11) 26... Qc5 {[%emt 0:01:00]} (26... Ba6 $1 $17 {[%cal Ra6d3]} 27. Rxc3 (27. Rd2 Qb4) 27... Rxc3 28. Rxc3 Qb4) 27. Qh4 {[%emt 0:02:10]} Nb5 $36 {[%emt 0:01:32][%mdl 2048] Black has some pressure.} 28. Nxb5 $1 {[%emt 0:03:20]} Qxb5 {[%emt 0:00:08]} 29. f4 {[%emt 0:02:06]} (29. Ba4 $1 $11 Rc1+ 30. Kf2) 29... Rc1+ {[%emt 0:01:20]} 30. Kf2 $1 {[%emt 0:00:15][%cal Of4f5]} Qc5 {[%emt 0:04:27]} 31. Qf6 {[%emt 0:09:22]} Re6 {[%emt 0:07:55]} (31... Ba6 {[#]} 32. Bxd5 $1 Qe7 33. e6 $1 Qxf6 34. exf7+ Qxf7 35. Rxe8+ Kg7 36. Bxf7 Bxd3 37. Re7 $11) 32. Qd8+ {[%emt 0:01:35]} Kg7 {[%emt 0:00:06]} 33. Kg3 {[%emt 0:05:19]} (33. Bxd5 $11 Rc2+ 34. Kg3 Bxd5 35. Qxd5) 33... Ba6 $17 {[%emt 0:03:44]} 34. Qxd5 {[%emt 0:00:15]} Bxd3 {[%emt 0:00:20]} 35. Qxc5 {[%emt 0:00:04]} bxc5 {[%emt 0:01:25]} 36. Bxe6 {[%emt 0:00:06][%mdl 4096] Endgame KRB-KRB} c4 {[%emt 0:00:26]} (36... fxe6 37. Rxd3 g5 38. Rd6 $14 (38. fxg5 Kg6 $11)) 37. Bd5 {[%emt 0:00:16]} Bb1 {[%emt 0:01:19]} (37... Ra1 $17 {[%cal Oc4c3] Threatens to win with ...c3!} 38. Be4 Rxa2) 38. Ra3 $11 {[%emt 0:01:28] The position is equal.} c3 $1 {[%emt 0:04:14]} 39. Rxa7 {[%emt 0:00:41]} c2 {[%emt 0:00:16] Hoping for ...Rd1.} 40. Rxf7+ {[%emt 0:04:45]} Kh8 {[%emt 0:02:02] ...Rd1 is the strong threat.} 41. Kh4 {[%emt 0:39:55] Intending Rf8+ and mate.} (41. Rc7 $2 Re1 42. Kf3 (42. Rc8+ $2 Kg7 $19) 42... c1=Q 43. Rxc1 Rxc1 $19) 41... h6 {[%emt 0:04:34]} 42. Rf8+ {[%emt 0:00:00]} ({Wrong is} 42. Rc7 $2 Rd1 43. Bb3 (43. Rc8+ $2 Kg7 $19) 43... c1=Q 44. Rxc1 Rxc1 $19) 42... Kg7 {[%emt 0:02:33]} 43. Rf7+ {[%emt 0:00:00]} Kh8 $1 {[%emt 0:00:05]} 44. Rf8+ {[%emt 0:00:00]} ({Not} 44. Rc7 $2 Rd1 45. Rc8+ Kg7 46. Rc7+ Kf8 47. Rc8+ Ke7 48. Rc7+ Kd8 $19) 44... Kg7 {[%emt 0:00:04] Weighted Error Value: White=0.20 (precise) /Black=0.16 (very precise)} 1/2-1/2

[Event "HSK GM Invitational 2022"]
[Site "Hamburg"]
[Date "2022.05.27"]
[Round "9.4"]
[White "Woelk, Tom-Frederic"]
[Black "Trent, Lawrence"]
[Result "1/2-1/2"]
[ECO "E20"]
[WhiteElo "2315"]
[BlackElo "2398"]
[Annotator "TA"]
[PlyCount "44"]
[EventDate "2022.05.20"]
[EventType "tourn"]
[EventCountry "GER"]
[SourceTitle "playchess.com"]
[Source "ChessBase"]
[SourceQuality "1"]
[TimeControl "40/5400+30:1800+30"]

{[%evp 13,44,0,14,7,7,0,3,-5,-21,-15,-16,-14,-27,-26,0,-14,0,0,0,0,0,0,0,0,0,0,14,0,0,0,0,0,0]} 1. d4 {[%emt 0:04:54][%cal Bd2d4,Bd4d5][%mdl 32]} Nf6 {[%emt 0:00:08]} 2. c4 {[%emt 0:00:04]} e6 {[%emt 0:00:35]} 3. Nc3 {[%emt 0:00:20]} Bb4 {[%emt 0:00:05]} 4. f3 {[%emt 0:00:16]} c5 {[%emt 0:02:56]} 5. d5 {[%emt 0:00:14]} O-O {[%emt 0:00:16]} 6. e4 {[%emt 0:00:37]} d6 {[%emt 0:00:09]} 7. Nge2 {[%emt 0:01:42]} b5 {[%emt 0:04:37]} 8. Nf4 {[%emt 0:02:54] E20: Nimzo-Indian: 4 g3 and 4 f3.} (8. cxb5 exd5 9. exd5 Nbd7 $15) 8... exd5 $1 {[%emt 0:00:35]} 9. cxd5 {[%emt 0:00:46]} a6 $1 {[%emt 0:04:44]} 10. a4 {[%emt 0:13:24]} Ba5 {[%emt 0:06:09]} 11. Be3 {[%emt 0:07:02]} (11. axb5 $6 axb5 12. Be3 c4 $14) 11... c4 {[%emt 0:18:39] [#]} 12. axb5 $146 {[%emt 0:08:15]} ({Predecessor:} 12. Kf2 Bd7 13. axb5 axb5 14. b4 cxb3 15. Qxb3 b4 16. Nb5 g5 17. Nh3 Nxe4+ 18. Kg1 {0-1 (39) Suder,J (2239)-Janik,I (2489) Pokrzywna 2020}) 12... axb5 {[%emt 0:00:25]} 13. Kf2 {[%emt 0:02:18]} Ba6 {[%emt 0:06:20]} 14. b4 {[%emt 0:13:52] The position is equal.} cxb3 {[%emt 0:08:19]} 15. Nxb5 {[%emt 0:08:38]} g5 {[%emt 0:25:02]} 16. Nh3 {[%emt 0:00:29]} Nxe4+ {[%emt 0:03:58]} 17. fxe4 {[%emt 0:02:13]} Qf6+ {[%emt 0:01:29]} 18. Kg3 {[%emt 0:15:40]} ({Don't go for} 18. Kg1 $2 Bxb5 19. Rb1 (19. Bxb5 $2 Bb6 $19) 19... Bxf1 20. Qxf1 Qc3 $19) 18... Qe5+ {[%emt 0:00:06]} 19. Kf2 {[%emt 0:00:52]} Qb2+ {[%emt 0:11:25]} 20. Kg3 {[%emt 0:03:38]} Qe5+ {[%emt 0:02:44]} 21. Kf2 {[%emt 0:00:06]} Qf6+ {[%emt 0:00:19]} 22. Kg3 {[%emt 0:02:40]} ({Wrong is} 22. Kg1 $2 Bxb5 23. Rb1 (23. Bxb5 $2 Bb6 $19) 23... Bxf1 24. Qxf1 Qc3 $19) 22... Qe5+ {[%emt 0:00:48] An even fight not without its subleties.  Weighted Error Value: White=0.03 (flawless) /Black=0.03 (flawless)} 1/2-1/2

[Event "HSK GM Invitational 2022"]
[Site "Hamburg"]
[Date "2022.05.27"]
[Round "9.5"]
[White "Mendonca, Leon Luke"]
[Black "Souleidis, Georgios"]
[Result "1-0"]
[ECO "A13"]
[WhiteElo "2551"]
[BlackElo "2430"]
[Annotator "TA"]
[PlyCount "105"]
[EventDate "2022.05.20"]
[EventType "tourn"]
[EventCountry "GER"]
[SourceTitle "playchess.com"]
[Source "ChessBase"]
[SourceQuality "1"]
[TimeControl "40/5400+30:1800+30"]

{[%evp 9,105,12,8,0,0,0,0,7,0,0,0,0,0,0,0,0,7,7,32,0,0,2,5,0,0,0,11,22,37,10,46,16,35,-22,-32,-54,-45,-52,-14,-15,0,0,0,0,0,0,0,0,25,17,14,25,40,0,26,26,35,15,11,0,8,-2,-2,-2,135,127,294,281,346,352,430,184,366,377,366,274,274,247,371,362,488,267,267,273,243,227,207,203,240,220,229,227,225,208,320,300,455,437]} 1. Nf3 {[%emt 0:00:05]} Nf6 {[%emt 0:01:08]} 2. c4 {[%emt 0:00:30]} e6 {[%emt 0:00:23]} 3. b3 {[%emt 0:03:41]} d5 {[%emt 0:01:01]} 4. Bb2 {[%emt 0:00:16]} b6 {[%emt 0:00:41]} 5. e3 {[%emt 0:02:54]} Bb7 {[%emt 0:00:12]} 6. Nc3 {[%emt 0:00:29][%cal Bb1c3,Bc3e2,Be2d4,Bd4f5][%mdl 32] A13: English Opening: 1...e6.} a6 {[%emt 0:01:09]} 7. cxd5 {[%emt 0:12:12]} exd5 {[%emt 0:00:21]} 8. Ne2 $5 {[%emt 0:01:00][%mdl 4] The position is equal. Exploring less charted territory.} Nbd7 {[%emt 0:03:52]} 9. Rc1 {[%emt 0:03:30]} Bd6 {[%emt 0:01:43]} 10. Ned4 {[%emt 0:03:21]} c5 {[%emt 0:06:22]} 11. Nf5 {[%emt 0:00:48][%csl LRd6,LRg7]} Bf8 {[%emt 0:00:07]} 12. d4 {[%emt 0:01:40]} g6 {[%emt 0:00:05]} 13. Ng3 {[%emt 0:01:02]} Bd6 {[%emt 0:14:37]} 14. Bd3 {[%emt 0:02:25]} (14. Ne5 $5 {[%cal Re5d7]}) 14... Qe7 {[%emt 0:01:07]} 15. O-O {[%emt 0:08:59]} O-O {[%emt 0:00:19] [#]} 16. Qe2 $146 {[%emt 0:03:50]} ({Predecessor:} 16. Re1 Rfe8 17. Nh4 Rad8 18. Bb1 Bb8 19. Nf3 h5 20. Qe2 Ne4 21. dxc5 bxc5 22. Nf1 f5 23. Bd3 Qe6 24. Ba1 {1-0 (62) Kantor,G (2533)-Dudin,G (2422) Riga 2021}) 16... Rfe8 {[%emt 0:01:07]} 17. Rfd1 {[%emt 0:03:44]} Ne4 {[%emt 0:08:35]} 18. dxc5 {[%emt 0:06:33]} Ndxc5 {[%emt 0:01:23]} 19. Ba1 {[%emt 0:07:57]} f6 {[%emt 0:19:32]} 20. Bb1 {[%emt 0:23:17]} a5 {[%emt 0:02:57]} 21. Bxe4 {[%emt 0:04:53]} (21. Nd4 $14) 21... dxe4 $11 {[%emt 0:02:42]} 22. Qc4+ {[%emt 0:01:13]} Kf8 $1 {[%emt 0:16:33]} 23. Ne1 {[%emt 0:01:30]} Kg7 {[%emt 0:02:42]} 24. Qb5 {[%emt 0:04:13]} Qc7 {[%emt 0:00:17] Hoping for ...Ba6.} 25. Rxc5 {[%emt 0:01:27]} bxc5 {[%emt 0:03:49]} 26. Rxd6 {[%emt 0:00:04]} Qxd6 {[%emt 0:00:05]} 27. Qxb7+ {[%emt 0:00:02]} Qe7 {[%emt 0:00:49]} 28. Qb6 {[%emt 0:02:00][%cal Og3e4] Threatens to win with Nxe4!} Rf8 {[%emt 0:03:09]} 29. h3 {[%emt 0:00:43]} a4 {[%emt 0:00:07]} 30. Bc3 {[%emt 0:00:36]} axb3 {[%emt 0:01:02]} 31. axb3 {[%emt 0:00:29]} Rab8 {[%emt 0:03:23]} 32. Qc6 {[%emt 0:00:08]} Rfc8 {[%emt 0:00:32]} 33. Qd5 {[%emt 0:00:50]} Re8 $1 {[%emt 0:02:48]} 34. Nc2 {[%emt 0:00:29]} Qf7 {[%emt 0:00:16]} 35. Qxc5 {[%emt 0:00:35]} Rec8 {[%emt 0:01:19]} 36. Qd4 {[%emt 0:00:27]} Rd8 {[%emt 0:01:09]} (36... Rxb3 $11 {keeps the balance.} 37. Nxe4 Rcxc3 $1 38. Nxc3 Qc7 39. Qxf6+ Kxf6 40. Nd5+ Ke5 41. Nxc7 Rc3) 37. Qxe4 $16 {[%emt 0:00:31]} Rd1+ {[%emt 0:00:45] This costs Black the game.} (37... Rdc8 $16) 38. Kh2 $18 {[%emt 0:00:22] aiming for Nd4.} Rxb3 {[%emt 0:00:08]} 39. Bd4 {[%emt 0:00:41]} Rbb1 {[%emt 0:00:05]} 40. Na3 {[%emt 0:00:26]} (40. Qc6 $142) 40... Rbc1 $2 {[%emt 0:00:40]} (40... Rb3) 41. Nb5 {[%emt 0:07:16]} Qd7 {[%emt 0:00:28] Inhibits Nd6.} 42. Qf4 {[%emt 0:02:51] The board is on fire.} Rc6 {[%emt 0:00:09]} 43. Qf3 {[%emt 0:02:25]} Rb1 {[%emt 0:01:52]} (43... Rdc1 $142 44. Ne2 R1c4) 44. Nc3 {[%emt 0:01:03] Pair of Knights!} Rb8 {[%emt 0:02:30] [#]} 45. Nce4 {[%emt 0:04:12]} (45. Nh5+ $142 $1 {[%mdl 512]} gxh5 46. Qg3+ Kf7 47. Qxb8) 45... Rf8 {[%emt 0:00:02]} 46. Qf4 {[%emt 0:01:03]} Qd8 {[%emt 0:02:49]} 47. Qg4 {[%emt 0:04:03]} Kg8 {[%emt 0:01:28]} 48. Qf3 {[%emt 0:00:56]} Qc7 {[%emt 0:07:42]} 49. Qd1 {[%emt 0:03:17]} ({Not} 49. Bxf6 Re6 $11) ({Weaker is} 49. Nxf6+ Rcxf6 50. Bxf6 Qd6 $14) 49... h6 {[%emt 0:02:36]} 50. Qa1 {[%emt 0:01:28]} Qe7 {[%emt 0:01:43]} 51. Qb1 {[%emt 0:02:37]} Kh7 {[%emt 0:00:29]} (51... f5 {is a better defense.}) 52. f4 {[%emt 0:00:58]} Qc7 {[%emt 0:01:11] [#]} (52... f5 $142 53. Nd2 Rc7) 53. Nh5 $1 {[%emt 0:01:36][%mdl 512] Weighted Error Value: White=0.19 (very precise) /Black=0.32} 1-0